fUSD/lending_fUSD_20260217
["ID","MTS","AMOUNT","RATE_DAILY","PERIOD"]
[405833508,1771348244479,-1546.47,0.00013698,2]
[405833509,1771348244489,-1546.47,0.00013698,2]
[405833510,1771348244499,-1546.47,0.00013698,2]
[405833511,1771348244509,-1546.47,0.00013698,2]
[405833512,1771348244519,-1546.47,0.00013698,2]
[405833513,1771348244528,-1546.47,0.00013698,2]
[405833514,1771348244540,-1546.47,0.00013698,2]
[405833515,1771348244550,-1546.47,0.00013698,2]
[405833516,1771348244560,-1546.47,0.00013698,2]
[405833517,1771348244570,-516.5,0.00013698,2]
[405833518,1771348244580,-516.5,0.00013698,2]
[405833519,1771348244590,-516.5,0.00013698,2]
[405833520,1771348244599,-516.5,0.00013698,2]
[405833521,1771348244608,-516.5,0.00013698,2]
[405833522,1771348244618,-516.5,0.00013698,2]
[405833523,1771348244627,-516.5,0.00013698,2]
[405833524,1771348244637,-516.5,0.00013698,2]
[405833525,1771348244647,-516.5,0.00013698,2]
[405833526,1771348244657,-516.5,0.00013698,2]
[405833527,1771348244667,-516.5,0.00013698,2]
[405833528,1771348244677,-516.5,0.00013698,2]
[405833529,1771348244686,-516.5,0.00013698,2]
[405833530,1771348244695,-516.5,0.00013698,2]
[405833531,1771348244705,-516.5,0.00013698,2]
[405833532,1771348244715,-516.5,0.00013698,2]
[405833533,1771348244725,-500.0,0.00013698,2]
[405833534,1771348244735,-500.0,0.00013698,2]
[405833535,1771348244745,-500.0,0.00013698,2]
[405833536,1771348244755,-500.0,0.00013698,2]
[405833537,1771348244765,-500.0,0.00013698,2]
[405833538,1771348244775,-494.24526323,0.00013698,2]
[405833539,1771348244787,-500.0,0.00013698,2]
[405833540,1771348244796,-500.0,0.00013698,2]
[405833541,1771348244806,-500.0,0.00013698,2]
[405833542,1771348244816,-191.17661539,0.00013698,2]
[405833543,1771348244826,-500.0,0.00013698,2]
[405833544,1771348244836,-500.0,0.00013698,2]
[405833545,1771348244845,-500.0,0.00013698,2]
[405833546,1771348244855,-500.0,0.00013698,2]
[405833547,1771348244865,-500.0,0.00013698,2]
[405833548,1771348244874,-500.0,0.00013698,2]
[405833549,1771348244884,-500.0,0.00013698,2]
[405833550,1771348244894,-500.0,0.00013698,2]
[405833551,1771348244904,-500.0,0.00013698,2]
[405833552,1771348244914,-500.0,0.00013698,2]
[405833553,1771348244923,-500.0,0.00013698,2]
[405833554,1771348244933,-307.56,0.00013698,2]
[405833555,1771348244942,-712.99,0.00013699,2]
[405833556,1771348244952,-4479.21,0.00013699,2]
[405833557,1771348244962,-500.0,0.00013699,2]
[405833558,1771348244971,-151.02878078,0.00013699,2]
[405833559,1771348244980,-500.0,0.00013754,2]
[405833560,1771348244989,-500.0,0.00013809,2]
[405833561,1771348244999,-502.39964348,0.00013816,2]
[405833562,1771348245008,-500.0,0.00013828,2]
[405833563,1771348245018,-500.0,0.00013863,2]
[405833564,1771348245027,-2052.7,0.00013868,2]
[405833565,1771348245040,-2052.7,0.00013868,2]
[405833566,1771348245050,-858.24,0.00013868,2]
[405833567,1771348245059,-858.24,0.00013868,2]
[405833568,1771348245072,-1013.23,0.00013868,2]
[405833569,1771348245083,-1013.23,0.00013868,2]
[405833570,1771348245098,-1608.12,0.00013868,2]
[405833571,1771348245111,-1608.12,0.00013868,2]
[405833572,1771348245124,-500.0,0.00013868,2]
[405833573,1771348245134,-500.0,0.00013868,2]
[405833574,1771348245143,-546.97,0.00013868,2]
[405833575,1771348245153,-546.97,0.00013868,2]
[405833576,1771348245163,-1479.1,0.00013868,2]
[405833577,1771348245172,-1479.1,0.00013868,2]
[405833578,1771348245182,-1546.47,0.00013868,2]
[405833579,1771348245191,-1546.47,0.00013868,2]
[405833580,1771348245201,-516.5,0.00013868,2]
[405833581,1771348245211,-516.5,0.00013868,2]
[405833582,1771348245220,-500.0,0.00013873,2]
[405833583,1771348245229,-500.0,0.00013873,2]
[405833584,1771348245238,-500.0,0.00013873,2]
[405833585,1771348245247,-163.87964352,0.00013873,2]
[405833586,1771348245257,-500.0,0.00013873,2]
[405833587,1771348245267,-501.23450591,0.00013873,2]
[405833588,1771348245277,-500.0,0.00013873,2]
[405833589,1771348245288,-500.0,0.00013873,2]
[405833590,1771348245297,-505.14943602,0.00013873,2]
[405833591,1771348245306,-500.0,0.00013873,2]
[405833592,1771348245315,-161.95965132,0.00013873,2]
[405833593,1771348245326,-500.0,0.00013873,2]
[405833594,1771348245335,-500.0,0.00013873,2]
[405833595,1771348245345,-500.29634492,0.00013873,2]
[405833596,1771348245354,-162.40112722,0.00013873,2]
[405833597,1771348245364,-500.0,0.00013873,2]
[405833598,1771348245373,-523.64780308,0.00013873,2]
[405833599,1771348245383,-525.66819458,0.00013873,2]
[405833600,1771348245392,-500.0,0.00013873,2]
[405833601,1771348245401,-500.0,0.00013873,2]
[405833602,1771348245411,-500.0,0.00013873,2]
[405833603,1771348245420,-500.0,0.00013873,2]
[405833604,1771348245430,-500.0,0.00013873,2]
[405833605,1771348245440,-161.87499248,0.00013873,2]
[405833606,1771348245450,-503.17452108,0.00013873,2]
[405833607,1771348245459,-500.0,0.00013873,2]
[405833608,1771348245469,-500.0,0.00013873,2]
[405833609,1771348245479,-500.0,0.00013873,2]
[405833610,1771348245488,-500.0,0.00013873,2]
[405833611,1771348245498,-500.0,0.00013873,2]
[405833612,1771348245507,-500.0,0.00013873,2]
[405833613,1771348245517,-500.0,0.00013873,2]
[405833614,1771348245527,-500.0,0.00013873,2]
[405833615,1771348245539,-500.0,0.00013873,2]
[405833616,1771348245549,-500.0,0.00013873,2]
[405833617,1771348245558,-335.00019172,0.00013873,2]
[405833618,1771348245568,-500.0,0.00013873,2]
[405833619,1771348245578,-500.0,0.00013873,2]
[405833620,1771348245587,-500.0,0.00013873,2]
[405833621,1771348245596,-500.0,0.00013873,2]
[405833622,1771348245605,-500.0,0.00013873,2]
[405833623,1771348245614,-170.20434449,0.00013873,2]
[405833624,1771348245623,-436.04334629,0.00013873,2]
[405833625,1771348245632,-500.0,0.00013873,2]
[405833626,1771348245641,-597.93872342,0.00013873,2]
[405833627,1771348245650,-559.34470409,0.00013873,2]
[405833628,1771348245659,-160.44342054,0.00013873,2]
[405833629,1771348245668,-500.0,0.00013873,2]
[405833630,1771348245677,-501.14207764,0.00013873,2]
[405833631,1771348245687,-161.02829907,0.00013873,2]
[405833632,1771348245696,-500.93096914,0.00013873,2]
[405833633,1771348245706,-160.29464371,0.00013873,2]
[405833634,1771348245715,-514.27467488,0.00013873,2]
[405833635,1771348245725,-500.0,0.00013873,2]
[405833636,1771348245734,-569.45122683,0.00013873,2]
[405833637,1771348245744,-500.0,0.00013873,2]
[405833638,1771348245755,-500.0,0.00013873,2]
[405833639,1771348245772,-500.0,0.00013873,2]
[405833640,1771348245788,-500.0,0.00013873,2]
[405833641,1771348245797,-503.05494034,0.00013873,2]
[405833642,1771348245807,-500.0,0.00013873,2]
[405833643,1771348245817,-186.11515271,0.00013873,2]
[405833644,1771348245827,-550.905089,0.00013873,2]
[405833645,1771348245836,-285.23122629,0.00013873,2]
[405833647,1771348245846,-500.0,0.00013873,2]
[405833649,1771348245855,-501.43225284,0.00013873,2]
[405833651,1771348245865,-500.0,0.00013918,2]
[405833653,1771348245875,-500.0,0.00013973,2]
[405833655,1771348245885,-163.51122534,0.00014028,2]
[405833656,1771348245894,-237.76,0.00014045,2]
[405833658,1771348245904,-302.6,0.00014184,2]
[405833660,1771348245913,-1000.0,0.00014339,2]
[405833661,1771348245923,-4479.21,0.00014384,2]
[405833662,1771348245933,-609.9181955,0.000144,2]
[405833663,1771348245943,-2052.7,0.0001442,2]
[405833664,1771348245952,-858.24,0.0001442,2]
[405833665,1771348245962,-1013.23,0.0001442,2]
[405833666,1771348245971,-1608.12,0.0001442,2]
[405833667,1771348245981,-500.0,0.0001442,2]
[405833668,1771348245990,-546.97,0.0001442,2]
[405833669,1771348246000,-1479.1,0.0001442,2]
[405833670,1771348246009,-1546.47,0.0001442,2]
[405833671,1771348246019,-516.5,0.0001442,2]
[405833672,1771348246028,-504.64635869,0.00014421,2]
[405833673,1771348246043,-1000.0,0.00014421,2]
[405833674,1771348246052,-1009.85751715,0.00014421,2]
[405833675,1771348246061,-504.09468333,0.00014421,2]
[405833676,1771348246074,-1000.0,0.00014421,2]
[405833677,1771348246084,-1000.0,0.00014421,2]
[405833678,1771348246093,-1000.0,0.00014421,2]
[405833679,1771348246102,-1000.0,0.00014421,2]
[405833680,1771348246111,-1000.0,0.00014421,2]
[405833681,1771348246120,-651.60051968,0.00014421,2]
[405833682,1771348246129,-1000.0,0.00014421,2]
[405833683,1771348246139,-502.68727614,0.00014421,2]
[405833684,1771348246149,-1000.0,0.00014421,2]
[405833685,1771348246158,-1002.86775924,0.00014421,2]
[405833686,1771348246167,-1000.0,0.00014421,2]
[405833687,1771348246176,-1000.0,0.00014421,2]
[405833688,1771348246185,-690.951752,0.00014421,2]
[405833689,1771348246195,-1000.0,0.00014421,2]
[405833690,1771348246204,-1000.0,0.00014421,2]
[405833691,1771348246214,-1000.0,0.00014421,2]
[405833692,1771348246223,-1000.0,0.00014421,2]
[405833693,1771348246233,-1000.0,0.00014421,2]
[405833694,1771348246242,-501.86536618,0.00014421,2]
[405833695,1771348246252,-1000.0,0.00014421,2]
[405833696,1771348246262,-1009.6821238,0.00014421,2]
[405833697,1771348246272,-1001.35605949,0.00014421,2]
[405833699,1771348246285,-502.22718587,0.00014421,2]
[405833700,1771348246294,-565.44208777,0.00014421,2]
[405833701,1771348246305,-1000.0,0.00014421,2]
[405833702,1771348246316,-1000.0,0.00014421,2]
[405833703,1771348246325,-1000.0,0.00014421,2]
[405833704,1771348246335,-502.80271569,0.00014421,2]
[405833705,1771348246345,-1001.06962982,0.00014421,2]
[405833706,1771348246355,-1000.0,0.00014421,2]
[405833707,1771348246365,-1000.0,0.00014421,2]
[405833708,1771348246375,-1000.0,0.00014421,2]
[405833709,1771348246385,-1000.0,0.00014421,2]
[405833710,1771348246394,-895.81638304,0.00014421,2]
[405833711,1771348246404,-9035.0,0.00014699,2]
[405833712,1771348246414,-2258.0,0.00014701,2]
[405833713,1771348246424,-153.0,0.00014702,3]
[405833714,1771348246433,-1716.0,0.00014705,2]
[405833715,1771348246442,-201.26544868,0.00014922,7]
[405833716,1771348246452,-1000.0,0.00014968,2]
[405833717,1771348246461,-1503.2366262,0.00014968,2]
[405833718,1771348246471,-715.83370402,0.00014968,2]
[405833719,1771348246480,-1000.0,0.00014968,2]
[405833720,1771348246489,-504.47861685,0.00014968,2]
[405833721,1771348246498,-1097.87159044,0.00014968,2]
[405833722,1771348246508,-1000.99019732,0.00014968,2]
[405833723,1771348246517,-395.07222913,0.00014968,2]
[405833724,1771348246526,-1000.0,0.00014968,2]
[405833725,1771348246538,-500.0,0.00014968,2]
[405833726,1771348246548,-1597.03636758,0.00014968,2]
[405833727,1771348246557,-1512.37454404,0.00014968,2]
[405833728,1771348246567,-1573.45760824,0.00014968,2]
[405833729,1771348246576,-1000.0,0.00014968,2]
[405833730,1771348246586,-1000.0,0.00014968,2]
[405833731,1771348246595,-1500.0,0.00014968,2]
[405833732,1771348246605,-1000.0,0.00014968,2]
[405833733,1771348246614,-1500.0,0.00014968,2]
[405833734,1771348246624,-1500.0,0.00014968,2]
[405833735,1771348246634,-1501.26419244,0.00014968,2]
[405833736,1771348246643,-803.51620924,0.00014968,2]
[405833737,1771348246652,-1500.0,0.00014968,2]
[405833738,1771348246661,-4479.21,0.00015068,2]
[405833739,1771348246670,-227.89,0.00015159,2]
[405833740,1771348246679,-500.0,0.00015217,2]
[405833741,1771348246688,-500.0,0.00015217,2]
[405833742,1771348246697,-500.0,0.00015217,2]
[405833743,1771348246706,-500.0,0.00015217,2]
[405833744,1771348246720,-500.0,0.00015217,2]
[405833745,1771348246729,-500.0,0.00015217,2]
[405833746,1771348246739,-500.0,0.00015217,2]
[405833747,1771348246748,-500.0,0.00015217,2]
[405833748,1771348246757,-500.0,0.00015217,2]
[405833749,1771348246766,-500.0,0.00015217,2]
[405833750,1771348246775,-500.0,0.00015217,2]
[405833751,1771348246787,-500.0,0.00015217,2]
[405833752,1771348246797,-500.0,0.00015217,2]
[405833753,1771348246806,-500.0,0.00015217,2]
[405833754,1771348246815,-500.0,0.00015217,2]
[405833755,1771348246825,-500.0,0.00015217,2]
[405833756,1771348246835,-500.0,0.00015217,2]
[405833757,1771348246844,-500.0,0.00015217,2]
[405833758,1771348246854,-500.0,0.00015217,2]
[405833759,1771348246863,-500.0,0.00015217,2]
[405833760,1771348246872,-277.35679052,0.00015217,2]
[405833761,1771348246882,-303.68,0.0001538,2]
[405833762,1771348246891,-537.95464382,0.00015383,7]
[405833763,1771348246901,-177.3195449,0.00015507,2]
[405833764,1771348246911,-1000.0,0.00015516,2]
[405833765,1771348246921,-2000.0,0.00015516,2]
[405833766,1771348246931,-1909.50775716,0.00015516,2]
[405833767,1771348246941,-1219.64567907,0.00015516,2]
[405833768,1771348246951,-2052.7,0.00015549,2]
[405833769,1771348246960,-2052.7,0.00015549,2]
[405833770,1771348246970,-2052.7,0.00015549,2]
[405833771,1771348246979,-2052.7,0.00015549,2]
[405833772,1771348246988,-2052.77678348,0.00015549,2]
[405833773,1771348246997,-858.24,0.00015549,2]
[405833774,1771348247007,-858.24,0.00015549,2]
[405833775,1771348247017,-858.24,0.00015549,2]
[405833776,1771348247026,-858.24,0.00015549,2]
[405833777,1771348247039,-858.40698515,0.00015549,2]
[405833778,1771348247048,-1013.23,0.00015549,2]
[405833779,1771348247058,-1013.23,0.00015549,2]
[405833780,1771348247068,-1013.23,0.00015549,2]
[405833781,1771348247077,-1013.23,0.00015549,2]
[405833782,1771348247087,-1013.32589873,0.00015549,2]
[405833783,1771348247098,-1608.12,0.00015549,2]
[405833784,1771348247108,-1608.12,0.00015549,2]
[405833785,1771348247118,-1608.12,0.00015549,2]
[405833786,1771348247127,-1608.12,0.00015549,2]
[405833787,1771348247136,-1608.14452513,0.00015549,2]
[405833788,1771348247145,-500.0,0.00015549,2]
[405833789,1771348247155,-500.0,0.00015549,2]
[405833790,1771348247166,-500.0,0.00015549,2]
[405833791,1771348247176,-383.99953744,0.00015549,2]
[405833792,1771348247185,-546.97,0.00015549,2]
[405833793,1771348247195,-546.97,0.00015549,2]
[405833794,1771348247205,-546.97,0.00015549,2]
[405833795,1771348247215,-546.97,0.00015549,2]
[405833796,1771348247224,-547.09394166,0.00015549,2]
[405833797,1771348247234,-1479.1,0.00015549,2]
[405833798,1771348247243,-1479.1,0.00015549,2]
[405833799,1771348247253,-1479.1,0.00015549,2]
[405833800,1771348247262,-1479.1,0.00015549,2]
[405833801,1771348247272,-1479.19350963,0.00015549,2]
[405833802,1771348247281,-1546.47,0.00015549,2]
[405833803,1771348247294,-1546.47,0.00015549,2]
[405833804,1771348247304,-1546.47,0.00015549,2]
[405833805,1771348247313,-1546.47,0.00015549,2]
[405833806,1771348247322,-1546.51311819,0.00015549,2]
[405833807,1771348247332,-516.5,0.00015549,2]
[405833808,1771348247342,-516.5,0.00015549,2]
[405833809,1771348247351,-516.5,0.00015549,2]
[405833810,1771348247361,-516.5,0.00015549,2]
[405833811,1771348247370,-516.63,0.00015549,2]
[405833812,1771348247380,-4479.21,0.00015753,2]
[405833813,1771348247390,-287.61899177,0.00015765,2]
[405833814,1771348247400,-481.75678796,0.00015827,2]
[405833815,1771348247409,-5000.0,0.0001596,2]
[405833816,1771348247419,-2262.0,0.00016,2]
[405833817,1771348247429,-2500.0,0.00016064,2]
[405833818,1771348247440,-2000.0,0.00016082,2]
[405833819,1771348247450,-609.9181955,0.0001615,2]
[405833820,1771348247460,-7104.0,0.00016169,2]
[405833821,1771348247471,-2104.0,0.00016171,2]
[405833822,1771348247481,-150.0,0.000162,2]
[405833823,1771348247495,-298.26089446,0.00016313,2]
[405833824,1771348247506,-1000.0,0.00016328,7]
[405833825,1771348247516,-150.0,0.00016425,2]
[405833826,1771348247526,-2579.0,0.00016438,2]
[405833827,1771348247538,-4479.21,0.00016438,2]
[405833828,1771348247548,-151.02975848,0.00016438,2]
[405833829,1771348247558,-2751.70990089,0.00016439,2]
[405833830,1771348247569,-3000.0,0.00016612,2]
[405833831,1771348247579,-150.0,0.0001665,2]
[405833832,1771348247589,-5975.8,0.00016833,2]
[405833833,1771348247598,-586.237,0.00016833,2]
[405833834,1771348247609,-1000.0,0.00016848,2]
[405833835,1771348247619,-309.29654756,0.00016861,2]
[405833836,1771348247630,-150.0,0.00016875,2]
[405833837,1771348247640,-179.385707,0.00016912,7]
[405833838,1771348247650,-2000.0,0.00017,2]
[405833839,1771348247660,-500.0,0.00017,2]
[405833840,1771348247672,-1000.0,0.00017051,2]
[405833841,1771348247683,-1000.0,0.00017071,2]
[405833842,1771348247693,-1000.0,0.00017074,2]
[405833843,1771348247704,-188.0,0.00017092,2]
[405833844,1771348247715,-283.148028,0.00017096,7]
[405833845,1771348247725,-150.0,0.000171,2]
[405833846,1771348247735,-1000.0,0.00017108,2]
[405833847,1771348247745,-1000.0,0.00017148,2]
[405833848,1771348248008,-188.0,0.00017148,2]
[405833849,1771348248045,-1014.66080185,0.0001716,2]
[405833850,1771348248055,-188.0,0.00017172,2]
[405833851,1771348248064,-1088.37215301,0.00017192,2]
[405833852,1771348248078,-1000.0,0.0001725,2]
[405833853,1771348248088,-1000.0,0.00017259,2]
[405833854,1771348248096,-1000.0,0.00017265,2]
[405833855,1771348248105,-188.0,0.00017288,2]
[405833856,1771348248117,-188.0,0.00017314,2]
[405833857,1771348248126,-150.0,0.00017325,2]
[405833858,1771348248135,-150.0,0.00017356,2]
[405833859,1771348248145,-500.0,0.00017356,2]
[405833860,1771348248155,-500.0,0.00017356,2]
[405833861,1771348248165,-150.0,0.00017356,2]
[405833862,1771348248174,-150.0,0.00017356,2]
[405833863,1771348248187,-150.0,0.00017356,2]
[405833864,1771348248197,-150.0,0.00017356,2]
[405833865,1771348248206,-1000.0,0.0001737,2]
[405833866,1771348248216,-189.91,0.00017383,2]
[405833867,1771348248225,-320.74051982,0.00017409,2]
[405833868,1771348248234,-150.37957529,0.00017411,2]
[405833869,1771348248244,-500.0,0.00017411,2]
[405833870,1771348248254,-500.0,0.00017411,2]
[405833871,1771348248263,-150.0,0.00017411,2]
[405833872,1771348248272,-150.0,0.00017411,2]
[405833873,1771348248282,-150.0,0.00017411,2]
[405833874,1771348248296,-244.28993987,0.00017411,2]
[405833875,1771348248306,-1000.0,0.00017427,2]
[405833876,1771348248316,-1000.0,0.00017442,2]
[405833877,1771348248326,-1000.0,0.00017449,2]
[405833878,1771348248336,-2000.0,0.00017452,7]
[405833879,1771348248347,-500.0,0.00017466,2]
[405833880,1771348248357,-152.12850518,0.00017466,2]
[405833881,1771348248367,-150.0,0.00017466,2]
[405833882,1771348248378,-200.36674187,0.00017466,2]
[405833883,1771348248387,-200.18645604,0.00017466,2]
[405833884,1771348248397,-8721.140424,0.0001749,7]
[405833885,1771348248407,-1000.0,0.000175,2]
[405833886,1771348248416,-2000.0,0.000175,2]
[405833887,1771348248426,-189.91,0.00017506,2]
[405833888,1771348248436,-500.0,0.0001752,2]
[405833889,1771348248445,-200.89245722,0.0001752,2]
[405833890,1771348248455,-150.0,0.0001755,2]
[405833891,1771348248464,-500.0,0.00017575,2]
[405833892,1771348248474,-1517.0,0.00017578,2]
[405833893,1771348248486,-1000.0,0.00017584,2]
[405833894,1771348248497,-1000.0,0.00017591,2]
[405833895,1771348248507,-168.71,0.00017595,2]
[405833896,1771348248516,-1000.0,0.00017621,2]
[405833897,1771348248527,-1000.0,0.00017628,2]
[405833898,1771348248541,-500.0,0.0001763,2]
[405833899,1771348248551,-9140.78560907,0.0001764,2]
[405833900,1771348248562,-1108.7832014,0.0001764,2]
[405833901,1771348248572,-1028.78147022,0.0001764,2]
[405833902,1771348248582,-1012.22400191,0.0001764,2]
[405833903,1771348248592,-1056.60393846,0.0001764,2]
[405833904,1771348248602,-1517.0,0.00017645,2]
[405833905,1771348248612,-168.71,0.00017669,2]
[405833906,1771348248622,-1000.0,0.00017683,2]
[405833907,1771348248633,-630.25617345,0.00017685,2]
[405833908,1771348248642,-1000.0,0.00017721,2]
[405833909,1771348248652,-1022.99162526,0.00017725,2]
[405833910,1771348248661,-774.87858036,0.00017731,2]
[405833911,1771348248672,-1000.0,0.00017737,2]
[405833912,1771348248682,-168.71,0.00017744,2]
[405833913,1771348248692,-1000.0,0.00017765,2]
[405833914,1771348248702,-150.0,0.00017775,2]
[405833915,1771348248713,-3737.631611,0.00017803,7]
[405833916,1771348248722,-1000.0,0.00017803,2]
[405833917,1771348248731,-444.64,0.00017808,2]
[405833918,1771348248741,-500.0,0.00017808,2]
[405833919,1771348248751,-500.0,0.00017808,2]
[405833920,1771348248761,-500.0,0.00017808,2]
[405833921,1771348248771,-500.0,0.00017808,2]
[405833922,1771348248780,-500.0,0.00017808,2]
[405833923,1771348248796,-500.0,0.00017808,2]
[405833924,1771348248806,-500.0,0.00017808,2]
[405833925,1771348248815,-385.86675615,0.00017808,2]
[405833926,1771348248825,-500.0,0.00017808,2]
[405833927,1771348248835,-500.0,0.00017808,2]
[405833928,1771348248844,-500.0,0.00017808,2]
[405833929,1771348248854,-800.0,0.00017808,2]
[405833930,1771348248864,-250.0,0.00017808,20]
[405833931,1771348248876,-250.0,0.00017808,20]
[405833932,1771348248886,-250.0,0.00017808,20]
[405833933,1771348248903,-250.0,0.00017808,20]
[405833934,1771348248913,-250.0,0.00017808,20]
[405833935,1771348248927,-250.0,0.00017808,20]
[405833936,1771348248937,-250.0,0.00017808,20]
[405833937,1771348248947,-250.0,0.00017808,20]
[405833938,1771348248959,-250.0,0.00017808,20]
[405833939,1771348248969,-250.0,0.00017808,20]
[405833940,1771348248978,-250.0,0.00017808,20]
[405833941,1771348248988,-250.0,0.00017808,20]
[405833942,1771348248997,-250.0,0.00017808,20]
[405833943,1771348249007,-250.0,0.00017808,20]
[405833944,1771348249016,-250.0,0.00017808,20]
[405833945,1771348249025,-250.0,0.00017808,20]
[405833946,1771348249035,-250.0,0.00017808,20]
[405833947,1771348249048,-250.0,0.00017808,20]
[405833948,1771348249058,-250.0,0.00017808,20]
[405833949,1771348249068,-250.0,0.00017808,20]
[405833950,1771348249078,-250.0,0.00017808,20]
[405833951,1771348249088,-250.0,0.00017808,20]
[405833952,1771348249100,-250.0,0.00017808,20]
[405833953,1771348249110,-250.0,0.00017808,20]
[405833954,1771348249119,-250.0,0.00017808,20]
[405833955,1771348249128,-250.0,0.00017808,20]
[405833956,1771348249139,-250.0,0.00017808,20]
[405833957,1771348249149,-250.0,0.00017808,20]
[405833958,1771348249158,-250.0,0.00017808,20]
[405833959,1771348249168,-250.0,0.00017808,20]
[405833960,1771348249177,-250.0,0.00017808,20]
[405833961,1771348249188,-250.0,0.00017808,20]
[405833962,1771348249198,-250.0,0.00017808,20]
[405833963,1771348249212,-250.0,0.00017808,20]
[405833964,1771348249222,-250.0,0.00017808,20]
[405833965,1771348249232,-250.0,0.00017808,20]
[405833966,1771348249242,-250.0,0.00017808,20]
[405833967,1771348249252,-250.0,0.00017808,20]
[405833968,1771348249261,-250.0,0.00017808,20]
[405833969,1771348249271,-250.0,0.00017808,20]
[405833970,1771348249281,-250.0,0.00017808,20]
[405833971,1771348249295,-250.0,0.00017808,20]
[405833972,1771348249305,-250.0,0.00017808,20]
[405833973,1771348249315,-250.0,0.00017808,20]
[405833974,1771348249324,-250.0,0.00017808,20]
[405833975,1771348249334,-250.0,0.00017808,20]
[405833976,1771348249344,-250.0,0.00017808,20]
[405833977,1771348249354,-250.0,0.00017808,20]
[405833978,1771348249364,-250.0,0.00017808,20]
[405833979,1771348249374,-250.0,0.00017808,20]
[405833980,1771348249384,-250.0,0.00017808,20]
[405833981,1771348249394,-250.0,0.00017808,20]
[405833982,1771348249404,-250.0,0.00017808,20]
[405833983,1771348249415,-250.0,0.00017808,20]
[405833984,1771348249424,-250.0,0.00017808,20]
[405833985,1771348249434,-250.0,0.00017808,20]
[405833986,1771348249444,-250.0,0.00017808,20]
[405833987,1771348249453,-250.0,0.00017808,20]
[405833988,1771348249463,-250.0,0.00017808,20]
[405833989,1771348249473,-250.0,0.00017808,20]
[405833990,1771348249483,-250.0,0.00017808,20]
[405833991,1771348249493,-250.0,0.00017808,20]
[405833992,1771348249503,-250.0,0.00017808,20]
[405833993,1771348249514,-250.0,0.00017808,20]
[405833994,1771348249525,-250.0,0.00017808,20]
[405833995,1771348249536,-250.0,0.00017808,20]
[405833996,1771348249548,-250.0,0.00017808,20]
[405833997,1771348249558,-250.0,0.00017808,20]
[405833998,1771348249568,-352.041673,0.00017808,20]
[405833999,1771348249579,-1517.0,0.00017816,2]
[405834000,1771348249588,-1000.0,0.00017818,2]
[405834001,1771348249599,-2497.6923037,0.0001783,2]
[405834002,1771348249608,-1000.0,0.00017831,2]
[405834003,1771348249618,-500.0,0.00017855,2]
[405834004,1771348249628,-200.0,0.00017855,2]
[405834005,1771348249638,-200.0,0.00017856,2]
[405834006,1771348249648,-500.0,0.00017856,2]
[405834007,1771348249657,-500.0,0.00017856,2]
[405834008,1771348249667,-200.0,0.00017856,2]
[405834009,1771348249677,-200.0,0.00017856,2]
[405834010,1771348249687,-1000.0,0.00017863,2]
[405834011,1771348249698,-4587.476,0.000179,2]
[405834012,1771348249708,-951.6545,0.000179,2]
[405834013,1771348249718,-10000.0,0.000179,2]
[405834014,1771348249738,-609.9181955,0.000179,2]
[405834015,1771348249764,-10292.65015621,0.000179,2]